Cogmind - Beta 11.1 @@@ ROGUE MODE // 2022.05.02 @ 04:02:01 Player: Olga Result: Destroyed by D-53 Grenadier with Mini Grenade Launcher Performance ------------- Evolutions (0) 0 Regions Visited (2) 400 Robots Destroyed (9) 45 Value Destroyed (187) 187 Prototype IDs (0) 0 Alien Tech Used (0) 0 Bonus (0) 0 TOTAL SCORE: 632 Bonus ------- None Cogmind --------- Core Integrity 0/250 Matter 300/300 Energy 99/100 System Corruption 1% Temperature Cool (2) Movement Core (50) Location -10/Mines Parts ------- > --- POWER (1) -------- (None) > --- PROPULSION (2) --- (None) > --- UTILITY (2) ------ Structural Scanner Core Shielding > --- WEAPON (2) ------- (None) > --- INVENTORY (5) ---- Flight Unit Structural Scanner Core Shielding Medium Armor Plating Mace Peak State ------------ > --- POWER ------------ Ion Engine > --- PROPULSION ------- Aluminum Leg Aluminum Leg > --- UTILITY ---------- Small Storage Unit Structural Scanner > --- WEAPON ----------- Small Laser Small Laser > --- INVENTORY -------- Ion Engine Light Treads Light Treads Wheel Compact Wheel EM Pulse Gun [Rating: 7] Favorites ----------- Power Ion Engine Engine Ion Engine Propulsion Aluminum Leg Leg Aluminum Leg Wheel Wheel Flight Unit Flight Unit Utility Structural Scanner Device Structural Scanner Storage Small Storage Unit Protection Core Shielding Weapon Small Laser Energy Gun Small Laser Build | -11 -10 -10 ------- Run | Scr Mat Min Slots Evolved . | . . . Power . | . . . Propulsion . | . . . Utility . | . . . Weapon . | . . . Parts Attached 10 | . 6 4 Power 2 | . 1 1 Engine 2 | . 1 1 Core . | . . . Reactor . | . . . Propulsion 3 | . 1 2 Treads . | . . . Leg . | . . . Wheel 1 | . 1 . Hover . | . . . Flight 2 | . . 2 Utility 4 | . 4 . Device 3 | . 3 . Storage . | . . . Processor . | . . . Hackware . | . . . Protection 1 | . 1 . Artifact . | . . . Weapon 1 | . . 1 Energy Gun 1 | . . 1 Energy Cannon . | . . . Ballistic Gun . | . . . Ballistic Cannon . | . . . Launcher . | . . . Special Weapon . | . . . Impact Weapon . | . . . Slashing Weapon . | . . . Piercing Weapon . | . . . Special Melee Weapon . | . . . Unidentified Prototypes . | . . . Corrupted Parts 1 | . . 1 System Corruption 1 | . . 1 Parts Lost 7 | . 4 3 Power 1 | . 1 . Propulsion 3 | . 1 2 Utility 1 | . 1 . Weapon 2 | . 1 1 Highest Loss Streak 4 | . 4 3 To Critical Strikes . | . . . Average Slot Usage (%) 75 | . 82 64 Engine 9 | . 10 7 Leg 13 | . 21 . Flight 6 | . . 16 Device 13 | . 13 14 Storage 7 | . 11 . Protection 6 | . 2 14 Energy Gun 17 | . 21 11 Naked Turns . | . . . Heaviest Build 13 | 12 13 7 Greatest Support 20 | 20 20 8 Greatest Overweight (x) 1 | . . 1 Average Overweight (x) . | . . . Largest Inventory Capacity 8 | . 8 5 Average Capacity 6 | . 7 5 Most Carried 8 | . 8 5 Average Carried 6 | . 7 4 Final Capacity 8 | 8 5 5 Final Carried 6 | 6 5 5 Class Distribution -------------------- 100% | Mutant Dominant Class ---------------- Mutant | -10/Materials Mutant | -10/Mines Resources | -11 -10 -10 ----------- Run | Scr Mat Min Matter Collected 295 | 199 13 83 Remotely . | . . . Salvage Created 236 | . 175 61 Parts 21 | . 10 11 Haulers Intercepted . | . . . Recyclers Shooed . | . . . Parts Field Recycled . | . . . Retrieved Matter . | . . . Parts Self-Destructed . | . . . Prevented . | . . . Kills | -11 -10 -10 ------- Run | Scr Mat Min Combat Hostiles Destroyed 7 | . 4 3 Guns 7 | . 4 3 Classes Destroyed 4 | . 2 2 Worker 1 | . . 1 Tunneler 1 | . 1 . Swarmer 3 | . . 3 Grunt 4 | . 4 . Best Kill Streak 4 | . 2 4 Combat Bots Only 3 | . 2 3 Max Kills in Single Turn 1 | . 1 1 Gunslinging . | . . . Exploded . | . . . Melee . | . . . Uniques/NPCs Destroyed . | . . . Combat | -11 -10 -10 -------- Run | Scr Mat Min Damage Taken 793 | . 572 221 Core 255 | . 178 77 Absorbed by Shields . | . . . Redirected to Shielding 33 | . 19 14 Core Remaining (%) 100 | 100 . . Volleys Fired 29 | . 21 8 Largest 2 | . 2 1 Hottest 80 | . 80 40 Shots Fired 50 | . 42 8 Gun 50 | . 42 8 Cannon . | . . . Launcher . | . . . Special . | . . . Kinetic . | . . . Thermal 42 | . 42 . Explosive . | . . . Electromagnetic 8 | . . 8 Robot Hit Streak 11 | . 11 9 Robot Miss Streak 3 | . 3 . Penetration Max . | . . . Secondary Targets . | . . . Shots Hit Robots 40 | . 32 8 Core Hits 15 | . 11 4 Critical Kills . | . . . Critical Parts Destroyed . | . . . Critical Strikes . | . . . Melee Attacks . | . . . Impact . | . . . Slashing . | . . . Piercing . | . . . Sneak Attacks . | . . . Combat Hostiles . | . . . Follow-up Attacks . | . . . Damage Inflicted 433 | . 367 66 Guns 431 | . 365 66 Cannons . | . . . Explosions . | . . . Melee . | . . . Ramming 2 | . 2 . Kinetic . | . . . Thermal 365 | . 365 . Explosive . | . . . Electromagnetic 66 | . . 66 Impact . | . . . Slashing . | . . . Piercing . | . . . Highest Corruption 1 | . . 1 Average Corruption 1 | . . 1 Corruption Purged . | . . . Corruption Blocked . | . . . Effects 1 | . . 1 Matter Fused 1 | . . 1 Overload Shots . | . . . Overflow Damage . | . . . Projectiles . | . . . Explosions . | . . . Melee . | . . . Knockbacks . | . . . Impact . | . . . Kinetic . | . . . Secondary . | . . . Self-Inflicted Damage . | . . . Shots . | . . . Rammed . | . . . Targets Rammed 2 | . 2 . Kicked 2 | . 2 . Crushed . | . . . Highest Temperature 394 | . 394 . Average Temperature 147 | . 147 . Received Heat Transfer 339 | . 339 . Effects 3 | . 3 . Interference 2 | . 2 . Short Circuit 1 | . 1 . Siege Activations . | . . . Robots Corrupted . | . . . Combat Hostiles . | . . . Parts Fried . | . . . Impact Corruptions . | . . . Robots Melted . | . . . Combat Hostiles . | . . . Parts Melted 2 | . 2 . Heat Transferred 850 | . 850 . Parts Sabotaged . | . . . Parts Stolen . | . . . Parts Stripped . | . . . Power Chain Reactions . | . . . Missiles Intercepted . | . . . Alert | -11 -10 -10 ------- Run | Scr Mat Min Peak Influence 140 | . 140 129 Initial 54 | . . 54 Average 89 | . 77 109 Maximum Alert Level . | . . . Low Security (%) 100 | . 100 100 Level 1 . | . . . Level 2 . | . . . Level 3 . | . . . Level 4 . | . . . Level 5 . | . . . High Security . | . . . Max Security . | . . . Squads Dispatched 2 | . 2 . Investigation . | . . . Extermination . | . . . Reinforcement 2 | . 2 . Assault . | . . . Garrison . | . . . Intercept . | . . . Searches Triggered . | . . . Construction Impeded . | . . . Haulers Reinforced . | . . . Active Scanning Responses . | . . . Cargo Convoy Interrupts . | . . . Stealth | -11 -10 -10 --------- Run | Scr Mat Min Distress Signals . | . . . Communications Jammed . | . . . Distress Signals . | . . . Times Spotted 17 | . 12 5 Peak Tracking Total 5 | . 5 3 Tactical Retreats 1 | . 1 . Traps | -11 -10 -10 ------- Run | Scr Mat Min Traps Triggered . | . . . Indirectly . | . . . Trap Hack Attempts . | . . . Triggered . | . . . Disarmed . | . . . Reprogrammed . | . . . Reused . | . . . Traps Extracted . | . . . Installed . | . . . Triggered . | . . . Machines | -11 -10 -10 ---------- Run | Scr Mat Min Machines Disabled . | . . . Max in Single Turn . | . . . Machines Sabotaged . | . . . Garrisons Compromised . | . . . Overloaded Fab Kills . | . . . Hacking | -11 -10 -10 --------- Run | Scr Mat Min Machines Accessed . | . . . Terminals . | . . . Fabricators . | . . . Repair Stations . | . . . Recycling Units . | . . . Scanalyzers . | . . . Garrison Access . | . . . Total Hacks . | . . . Successful . | . . . Failed . | . . . Catastrophic . | . . . Database Lockouts . | . . . Manual . | . . . Terminals . | . . . Fabricators . | . . . Repair Stations . | . . . Recycling Units . | . . . Scanalyzers . | . . . Garrison Access . | . . . Terminal Hacks . | . . . Fabricator Hacks . | . . . Repair Station Hacks . | . . . Recycling Unit Hacks . | . . . Scanalyzer . | . . . Garrison Access Hacks . | . . . Unauthorized Hacks . | . . . Terminals . | . . . Fabricators . | . . . Repair Stations . | . . . Recycling Units . | . . . Scanalyzers . | . . . Garrison Access . | . . . Data Cores Recovered . | . . . Used . | . . . Hacking Detections . | . . . Full Trace Events . | . . . Feedback Events . | . . . Feedback Blocked . | . . . Robot Schematics Acquired . | . . . Robots Built . | . . . Authchips . | . . . Time . | . . . Total Robot Build Rating . | . . . Part Schematics Acquired . | . . . Parts Built . | . . . Authchips . | . . . Time . | . . . Total Part Build Rating . | . . . Parts Repaired . | . . . Time . | . . . Parts Recycled . | . . . Recycled Matter . | . . . Retrieved Matter . | . . . Retrieved Components . | . . . Parts Scanalyzed . | . . . Part Schematics Acquired . | . . . Parts Damaged . | . . . Bothacking | -11 -10 -10 ------------ Run | Scr Mat Min Used RIF Installer . | . . . Robots Hacked . | . . . Non-combat . | . . . Combat . | . . . Robot Hacks Applied . | . . . Relay Couplers Released . | . . . Fabnet Peak Effective % . | . . . Robots Rewired . | . . . Allies Hacked . | . . . Hacks Repelled . | . . . Allies | -11 -10 -10 -------- Run | Scr Mat Min Total Allies . | . . . Largest Group . | . . . Highest-Rated Group . | . . . Highest-Rated Ally . | . . . Total Orders . | . . . Ally Attacks . | . . . Total Damage . | . . . Kills . | . . . Allies Corrupted . | . . . Allies Melted . | . . . Intel | -11 -10 -10 ------- Run | Scr Mat Min Robot Analysis Total . | . . . Derelict Logs Recovered . | . . . Drone Launches . | . . . Drone Recoveries . | . . . Exploration | -11 -10 -10 ------------- Run | Scr Mat Min Turns Passed 293 | . 187 106 Spaces Moved 317 | 1 120 196 Core 101 | . 61 40 Treads . | . . . Legs 60 | 1 59 . Wheels . | . . . Hover . | . . . Flight 156 | . . 156 Fastest Speed 37 | 120 50 37 Average Speed 57 | 120 84 40 Slowest Speed 120 | 120 120 100 Overloaded Moves . | . . . Propulsion Burnouts . | . . . Robots Hopped 4 | . . 4 Cave-ins Triggered . | . . . Exploration Rate (%) 28 | 1 34 51 Regions Visited 2 Branch Regions 1 Pre-discovered Areas . | . . . Known Exits Taken . | . . . Unknown Exits Taken 2 | 1 1 . Scrap Searched . | . . . Spaces Dug . | . . . Terrain Destroyed . | . . . Melee . | . . . Projectile . | . . . AOE . | . . . Terrain Rammed . | . . . Walls Destroyed . | . . . Machines Disabled . | . . . Actions | -11 -10 -10 --------- Run | Scr Mat Min Total 377 | . 166 211 Wait 7 | . 3 4 Move 308 | . 119 189 Hop 3 | . . 3 Pick Up 8 | . 6 2 Fast Attach 4 | . 2 2 Attach 6 | . 4 2 Detach . | . . . Swap . | . . . Drop 10 | . 9 1 Fire 29 | . 21 8 Melee . | . . . Ram . | . . . Kick 2 | . 2 . Crush . | . . . Escape Stasis . | . . . Rewire . | . . . Trap . | . . . Miscellaneous . | . . . Route ------- -11/Scrapyard -10/Materials (discovered 2 exits: [*Mat] / [*Min]) -10/Mines (discovered 1 exit: [*Mat]) History --------- Turn | Location | Event 1 | -11/Scrapyard | Discovered new exit (range 0) 1 | -11/Scrapyard | Entered Materials 160 | -10/Materials | Core integrity fell below 50% 162 | -10/Materials | Discovered new exit (range 11) 179 | -10/Materials | Discovered new exit (range 13) 188 | -10/Materials | Entered Mines 201 | -10/Mines | Lost 4 parts (1p1n1u1w) 279 | -10/Mines | Assembled infested the area 291 | -10/Mines | Core integrity fell below 20% 293 | -10/Mines | Discovered new exit (range 8) 294 | -10/Mines | Destroyed by D-53 Grenadier with Mini Grenade Launcher Last Messages --------------- 00230_ Acquired 12 matter. 00231_ Acquired Lgt. Ion Engine. 00232_ K-01 Serf collects debris. 00238_ Acquired Flight Unit. 00240_ Acquired 12 matter. 00241_ Acquired 20 matter. 00262_ System corrupted: Matter fused (-5). 00268_ K-01 Serf collects debris. 00279_ ALERT: Infestation in the mines, dispatching Demolisher response squad. 00279_ K-01 Serf collects debris. 00290_ C-30 ARC bursts open, deploying its payload. 00290_ D-53 Grenadier unfolds itself. 00290_ EM Pulse Gun destroyed. 00291_ Acquired 39 matter. 00292_ Flight Unit destroyed. 00292_ Dropped Lgt. Ion Engine. 00293_ EXIT=FOUND 00294_ The unstable cave ceiling collapses. 00294_ Flight Unit destroyed. Map ----- +----------------------------------------------------+ | ## ###????????????? | | ##### ###????????????? | | ########### ##????????????? | | #######?### ##????????????? | | #####????## ##????????????? | | #####????## ###????????????? | | ##????## ###????????????? | | ### ##????## ##?????????????? | | ### ##????## ##?????????????? | | ?## ######## ##??????#####??? | | ?## ######## ###############? | | ?## #### ########## ##### | | ?###### #### ### | | ?###### #### ######## ## | | ####### ######## # ## | | ########### ##????## ## | | # ######## ####????## % ### | | ##### ####????## dd ## | | ##??????## ## | | #######??????## #### | | ### #######??????## * ### | | #### ###???????????## ###? | | #########???????????## ###? | | #?######???????????#### ##? | | ???????????????????### #### | | ???????????????????## @ ## | | ???????????????????## ## | | ???????????????????## ## | | ???????????????????## ## | | #??????????????????## < ## | | ########???????????## ## | | #########??????????## ## | | ### ####?????????########### | | ## ####????????########### | | ###??????????????????? | | ##??????????????????? | | ##??????????????????? | | ##??????????????????? | | ### ##??????????????????? | | ###### ###??????????????????? | | ###########??????????????????? | | ##???#####???????????????????? | | #????????????????????????????? | | ?????????????????????????????? | | ?????????????????????????????? | | | | | | | | | | | +----------------------------------------------------+ Best States ------------- Heat Dissipation 25 Energy Generation 10 Energy Capacity 250 Matter Stores 300 Matter Capacity 300 Sight Range 16 Terrain Scan Density 10 Core Shielding 20 Evasion (%) 62 Item Schematics ----------------- None Robot Schematics ------------------ None Fabricated ------------ Nothing Alien Tech Used ----------------- None Achievements -------------- None Challenges ------------ None Game ------ Seed ShadingPrecisionNeutralizer Manual? 0 Play Time 00:06:45 Cumulative 152.6 hours Start 2022.05.02 @ 03:49:10 End 2022.05.02 @ 04:02:01 Sessions 1 Manual Loads 0 Difficulty Rogue Special Mode None Game No. 244 Rogue 243 Adventurer 0 Explorer 1 Win Type - Total 7 Types 7/0/0/0/0/0/0/0/0 Lore% 60 Gallery% 62 Achievement% 52 Wizard Run 0 Options --------- ASCII 1 Keyboard 0 Movement Vi Keybinds 0 Fullscreen 1 Font 18/SmallcapsGlow Map View 76x50 Tactical HUD 1 Map Filters NONE Filters NONE Steam 1 RUN: 3f254076-60c3-442f-bb56-254962a2ddc5